[Event "Titled Tuesday Blitz November 01 Late 2022"]
[White "Bazzano, Sebastian"]
[Black "Perez Cruz, Adianet"]
[WhiteFideId "104566"]
[BlackFideId "3510115"]
[WhiteElo "2214"]
[BlackElo "2141"]
[Result "0-1"]
[Round "08"]
[TimeControl "180+1"]
[Date "2022.11.02"]
[WhiteClock "0:00:01"]
[BlackClock "0:01:07"]

1. d4 {[%clk 0:03:00]}  d5 {[%clk 0:02:58]} 2. Bf4 {[%clk 0:03:00]}  Nf6 {[%clk 0:02:57]} 3. e3 {[%clk 0:03:00]}  c6 {[%clk 0:02:53]} 4. c3 {[%clk 0:03:00]}  Bg4 {[%clk 0:02:53]} 5. Be2 {[%clk 0:02:58]}  Bxe2 {[%clk 0:02:52]} 6. Qxe2 {[%clk 0:02:58]}  Nbd7 {[%clk 0:02:51]} 7. Nf3 {[%clk 0:02:58]}  e6 {[%clk 0:02:50]} 8. Nbd2 {[%clk 0:02:58]}  c5 {[%clk 0:02:51]} 9. h3 {[%clk 0:02:56]}  cxd4 {[%clk 0:02:51]} 10. exd4 {[%clk 0:02:56]}  Be7 {[%clk 0:02:51]} 11. O-O {[%clk 0:02:54]}  O-O {[%clk 0:02:47]} 12. Ne5 {[%clk 0:02:53]}  Nxe5 {[%clk 0:02:46]} 13. Bxe5 {[%clk 0:02:53]}  Bd6 {[%clk 0:02:46]} 14. Rfe1 {[%clk 0:02:44]}  Bxe5 {[%clk 0:02:45]} 15. dxe5 {[%clk 0:02:40]}  Ne8 {[%clk 0:02:44]} 16. Qg4 {[%clk 0:02:39]}  g6 {[%clk 0:02:43]} 17. h4 {[%clk 0:02:33]}  Ng7 {[%clk 0:02:43]} 18. Nf3 {[%clk 0:02:29]}  h5 {[%clk 0:02:43]} 19. Qf4 {[%clk 0:02:27]}  Rc8 {[%clk 0:02:38]} 20. Rad1 {[%clk 0:02:25]}  Rc4 {[%clk 0:02:36]} 21. Rd4 {[%clk 0:02:24]}  Qc7 {[%clk 0:02:34]} 22. Rxc4 {[%clk 0:02:13]}  Qxc4 {[%clk 0:02:35]} 23. Qxc4 {[%clk 0:02:12]}  dxc4 {[%clk 0:02:32]} 24. Rd1 {[%clk 0:02:13]}  Rb8 {[%clk 0:02:14]} 25. Rd7 {[%clk 0:02:09]}  Nf5 {[%clk 0:02:08]} 26. g3 {[%clk 0:02:02]}  b5 {[%clk 0:02:05]} 27. Rxa7 {[%clk 0:01:40]}  b4 {[%clk 0:02:04]} 28. Rc7 {[%clk 0:01:39]}  bxc3 {[%clk 0:02:04]} 29. bxc3 {[%clk 0:01:39]}  Rb1+ {[%clk 0:02:04]} 30. Kg2 {[%clk 0:01:38]}  Rb2 {[%clk 0:02:05]} 31. Nd4 {[%clk 0:01:13]}  Ne3+ {[%clk 0:01:59]} 32. Kf3 {[%clk 0:01:13]}  Ng4 {[%clk 0:01:59]} 33. Ne2 {[%clk 0:00:48]}  Rxa2 {[%clk 0:01:48]} 34. Rc5 {[%clk 0:00:35]}  Nh2+ {[%clk 0:01:36]} 35. Ke3 {[%clk 0:00:32]}  Ng4+ {[%clk 0:01:35]} 36. Kf3 {[%clk 0:00:32]}  Ra4 {[%clk 0:01:33]} 37. Nf4 {[%clk 0:00:19]}  Ra3 {[%clk 0:01:26]} 38. Ne2 {[%clk 0:00:18]}  Ra1 {[%clk 0:01:26]} 39. Kg2 {[%clk 0:00:15]}  Re1 {[%clk 0:01:23]} 40. Nf4 {[%clk 0:00:08]}  Rc1 {[%clk 0:01:15]} 41. Rxc4 {[%clk 0:00:07]}  Nxe5 {[%clk 0:01:16]} 42. Rc7 {[%clk 0:00:05]}  Ng4 {[%clk 0:01:13]} 43. Nh3 {[%clk 0:00:04]}  Rc2 {[%clk 0:01:11]} 44. c4 {[%clk 0:00:04]}  Ne5 {[%clk 0:01:09]} 45. c5 {[%clk 0:00:01]}  Nd3 {[%clk 0:01:07]} 46. Ng5 {[%clk 0:00:01]}  Rxc5 {[%clk 0:01:06]} 47. Rxc5 {[%clk 0:00:01]}  Nxc5 {[%clk 0:01:06]} 48. f4 {[%clk 0:00:01]}  Nd7 {[%clk 0:01:07]} 0-1


[Site "https://www.chess.com"]

[Event "Titled Tuesday Blitz November 01 Late 2022"]
[White "Besedes, Danilo"]
[Black "Drygalov, Sergey"]
[WhiteFideId "946796"]
[BlackFideId "24171743"]
[WhiteElo "2352"]
[BlackElo "2528"]
[Result "0-1"]
[Round "08"]
[TimeControl "180+1"]
[Date "2022.11.02"]
[WhiteClock "0:01:40"]
[BlackClock "0:00:58"]

1. Nf3 {[%clk 0:03:00]}  d5 {[%clk 0:01:51]} 2. d3 {[%clk 0:03:01]}  Nf6 {[%clk 0:01:50]} 3. Nbd2 {[%clk 0:03:01]}  g6 {[%clk 0:01:49]} 4. e4 {[%clk 0:03:00]}  Bg7 {[%clk 0:01:50]} 5. Be2 {[%clk 0:02:45]}  c5 {[%clk 0:01:49]} 6. O-O {[%clk 0:02:45]}  Nc6 {[%clk 0:01:49]} 7. Re1 {[%clk 0:02:45]}  O-O {[%clk 0:01:50]} 8. Bf1 {[%clk 0:02:45]}  e5 {[%clk 0:01:50]} 9. c3 {[%clk 0:02:41]}  h6 {[%clk 0:01:49]} 10. Qc2 {[%clk 0:02:41]}  Re8 {[%clk 0:01:48]} 11. a3 {[%clk 0:02:41]}  a5 {[%clk 0:01:41]} 12. a4 {[%clk 0:02:41]}  Be6 {[%clk 0:01:38]} 13. exd5 {[%clk 0:02:35]}  Nxd5 {[%clk 0:01:34]} 14. Nc4 {[%clk 0:02:35]}  Qc7 {[%clk 0:01:31]} 15. Nfd2 {[%clk 0:02:32]}  f5 {[%clk 0:01:30]} 16. Nb3 {[%clk 0:02:23]}  b6 {[%clk 0:01:29]} 17. Na3 {[%clk 0:02:22]}  Rad8 {[%clk 0:01:28]} 18. Nb5 {[%clk 0:02:22]}  Qd7 {[%clk 0:01:27]} 19. Nd2 {[%clk 0:02:22]}  Nf4 {[%clk 0:01:06]} 20. Nc4 {[%clk 0:02:10]}  Nxd3 {[%clk 0:01:06]} 21. Bxd3 {[%clk 0:02:06]}  Qxd3 {[%clk 0:01:07]} 22. Qxd3 {[%clk 0:02:06]}  Rxd3 {[%clk 0:01:07]} 23. Nxb6 {[%clk 0:02:06]}  Rb8 {[%clk 0:01:05]} 24. Nc7 {[%clk 0:01:46]}  Bf7 {[%clk 0:00:59]} 25. Na6 {[%clk 0:01:40]}  Rxb6 {[%clk 0:00:58]} 26. Nxc5 {[%clk 0:01:40]}  Rd8 {[%clk 0:00:58]} 0-1


[Site "https://www.chess.com"]

[Event "Titled Tuesday Blitz November 01 Late 2022"]
[White "Bluebaum, Matthias"]
[Black "Shipov, Sergei"]
[WhiteFideId "24651516"]
[BlackFideId "4113624"]
[WhiteElo "2633"]
[BlackElo "2777"]
[Result "0-1"]
[Round "08"]
[TimeControl "180+1"]
[Date "2022.11.01"]
[WhiteClock "0:00:05"]
[BlackClock "0:00:55"]

1. d4 {[%clk 0:02:58]}  d5 {[%clk 0:02:59]} 2. c4 {[%clk 0:02:55]}  dxc4 {[%clk 0:03:00]} 3. e4 {[%clk 0:02:55]}  Nf6 {[%clk 0:03:00]} 4. e5 {[%clk 0:02:55]}  Nd5 {[%clk 0:03:00]} 5. Bxc4 {[%clk 0:02:56]}  Nc6 {[%clk 0:03:01]} 6. Nc3 {[%clk 0:02:56]}  Nb6 {[%clk 0:03:00]} 7. Bb5 {[%clk 0:02:55]}  Bd7 {[%clk 0:03:00]} 8. Nf3 {[%clk 0:02:53]}  e6 {[%clk 0:03:00]} 9. O-O {[%clk 0:02:53]}  a6 {[%clk 0:02:58]} 10. Be2 {[%clk 0:02:51]}  Ne7 {[%clk 0:02:57]} 11. Ng5 {[%clk 0:02:26]}  h6 {[%clk 0:02:53]} 12. Nge4 {[%clk 0:02:25]}  Bc6 {[%clk 0:02:54]} 13. Be3 {[%clk 0:02:20]}  Nf5 {[%clk 0:02:53]} 14. Qc2 {[%clk 0:02:18]}  Nxd4 {[%clk 0:02:50]} 15. Qd2 {[%clk 0:02:10]}  Nxe2+ {[%clk 0:02:45]} 16. Qxe2 {[%clk 0:02:11]}  Nd5 {[%clk 0:02:29]} 17. Rfd1 {[%clk 0:02:05]}  Qh4 {[%clk 0:02:29]} 18. Qc4 {[%clk 0:01:43]}  Be7 {[%clk 0:01:41]} 19. Rd4 {[%clk 0:01:03]}  Nxe3 {[%clk 0:01:36]} 20. fxe3 {[%clk 0:01:02]}  Qh5 {[%clk 0:01:36]} 21. Nd6+ {[%clk 0:00:24]}  cxd6 {[%clk 0:01:32]} 22. exd6 {[%clk 0:00:25]}  Bg5 {[%clk 0:01:32]} 23. d7+ {[%clk 0:00:23]}  Bxd7 {[%clk 0:01:28]} 24. Rxd7 {[%clk 0:00:10]}  Kxd7 {[%clk 0:01:27]} 25. Rd1+ {[%clk 0:00:06]}  Ke8 {[%clk 0:01:23]} 26. Qa4+ {[%clk 0:00:04]}  Kf8 {[%clk 0:01:17]} 27. Qb4+ {[%clk 0:00:04]}  Kg8 {[%clk 0:01:12]} 28. Qxb7 {[%clk 0:00:05]}  Bxe3+ {[%clk 0:01:09]} 29. Kh1 {[%clk 0:00:06]}  Rf8 {[%clk 0:01:10]} 30. Rf1 {[%clk 0:00:05]}  Qe5 {[%clk 0:01:08]} 31. Qxa6 {[%clk 0:00:05]}  Bd4 {[%clk 0:01:08]} 32. Nb5 {[%clk 0:00:05]}  Qe2 {[%clk 0:01:04]} 33. Ra1 {[%clk 0:00:04]}  Bxb2 {[%clk 0:01:04]} 34. Rb1 {[%clk 0:00:05]}  Bf6 {[%clk 0:01:03]} 35. Qc6 {[%clk 0:00:04]}  h5 {[%clk 0:01:02]} 36. Nd6 {[%clk 0:00:05]}  h4 {[%clk 0:01:01]} 37. h3 {[%clk 0:00:04]}  Be5 {[%clk 0:01:01]} 38. Ne4 {[%clk 0:00:04]}  Qe3 {[%clk 0:01:01]} 39. Rf1 {[%clk 0:00:03]}  Rh6 {[%clk 0:01:00]} 40. a4 {[%clk 0:00:03]}  Rg6 {[%clk 0:01:00]} 41. a5 {[%clk 0:00:04]}  Qe2 {[%clk 0:01:00]} 42. Rg1 {[%clk 0:00:04]}  Bd4 {[%clk 0:01:00]} 43. a6 {[%clk 0:00:01]}  Bxg1 {[%clk 0:01:00]} 44. Nc3 {[%clk 0:00:02]}  Qe1 {[%clk 0:00:58]} 45. Qe4 {[%clk 0:00:02]}  Qxe4 {[%clk 0:00:58]} 46. Nxe4 {[%clk 0:00:03]}  Ba7 {[%clk 0:00:58]} 47. Nd6 {[%clk 0:00:02]}  Rb8 {[%clk 0:00:58]} 48. Nb7 {[%clk 0:00:02]}  Rg3 {[%clk 0:00:57]} 49. Kh2 {[%clk 0:00:02]}  Ra3 {[%clk 0:00:56]} 50. Nd6 {[%clk 0:00:03]}  Rxa6 {[%clk 0:00:56]} 51. Ne4 {[%clk 0:00:03]}  Bd4 {[%clk 0:00:56]} 52. g3 {[%clk 0:00:03]}  Ra2+ {[%clk 0:00:55]} 53. Nd2 {[%clk 0:00:04]}  Rxd2+ {[%clk 0:00:55]} 54. Kh1 {[%clk 0:00:05]}  Rb1# {[%clk 0:00:55]} 0-1


[Site "https://www.chess.com"]

[Event "Titled Tuesday Blitz November 01 Late 2022"]
[White "Boidiya, Sidi"]
[Black "Sargsyan, Anna M."]
[WhiteFideId "19600100"]
[BlackFideId "13308130"]
[WhiteElo "2113"]
[BlackElo "2284"]
[Result "0-1"]
[Round "08"]
[TimeControl "180+1"]
[Date "2022.11.02"]
[WhiteClock "0:00:56"]
[BlackClock "0:01:49"]

1. e4 {[%clk 0:02:57]}  c6 {[%clk 0:02:59]} 2. d4 {[%clk 0:02:57]}  d5 {[%clk 0:03:00]} 3. Nd2 {[%clk 0:02:57]}  dxe4 {[%clk 0:03:00]} 4. Nxe4 {[%clk 0:02:58]}  Nd7 {[%clk 0:03:00]} 5. Ng5 {[%clk 0:02:56]}  Ngf6 {[%clk 0:02:59]} 6. N1f3 {[%clk 0:02:54]}  h6 {[%clk 0:02:58]} 7. Nh3 {[%clk 0:02:52]}  g5 {[%clk 0:02:58]} 8. Nd2 {[%clk 0:02:39]}  e6 {[%clk 0:02:53]} 9. Bd3 {[%clk 0:02:37]}  Bg7 {[%clk 0:02:53]} 10. Qe2 {[%clk 0:02:36]}  c5 {[%clk 0:02:47]} 11. dxc5 {[%clk 0:02:35]}  Nxc5 {[%clk 0:02:47]} 12. Bb5+ {[%clk 0:02:35]}  Bd7 {[%clk 0:02:48]} 13. O-O {[%clk 0:02:33]}  Qc7 {[%clk 0:02:43]} 14. Nb3 {[%clk 0:02:29]}  O-O-O {[%clk 0:02:38]} 15. Be3 {[%clk 0:02:24]}  Nce4 {[%clk 0:02:21]} 16. Bxa7 {[%clk 0:01:45]}  g4 {[%clk 0:02:18]} 17. f3 {[%clk 0:01:23]}  Bxb5 {[%clk 0:02:17]} 18. Qxb5 {[%clk 0:01:21]}  Nd6 {[%clk 0:02:17]} 19. Qb4 {[%clk 0:01:14]}  gxh3 {[%clk 0:02:17]} 20. Bb6 {[%clk 0:01:14]}  Nd5 {[%clk 0:02:00]} 21. Bxc7 {[%clk 0:01:05]}  Nxb4 {[%clk 0:02:00]} 22. Bxd8 {[%clk 0:01:05]}  hxg2 {[%clk 0:02:00]} 23. Kxg2 {[%clk 0:01:03]}  Rxd8 {[%clk 0:02:01]} 24. c3 {[%clk 0:01:02]}  Nc2 {[%clk 0:01:56]} 25. Rad1 {[%clk 0:00:56]}  Ne3+ {[%clk 0:01:56]} 26. Kf2 {[%clk 0:00:56]}  Nxd1+ {[%clk 0:01:53]} 27. Rxd1 {[%clk 0:00:57]}  Ne4+ {[%clk 0:01:52]} 28. Ke2 {[%clk 0:00:55]}  Rxd1 {[%clk 0:01:52]} 29. Kxd1 {[%clk 0:00:56]}  Nd6 {[%clk 0:01:49]} 0-1


[Site "https://www.chess.com"]

[Event "Titled Tuesday Blitz November 01 Late 2022"]
[White "Boruchovsky, Avital"]
[Black "Kleiman, Jake"]
[WhiteFideId "2800055"]
[BlackFideId "2020041"]
[WhiteElo "2466"]
[BlackElo "2626"]
[Result "0-1"]
[Round "08"]
[TimeControl "180+1"]
[Date "2022.11.01"]
[WhiteClock "0:00:55"]
[BlackClock "0:01:07"]

1. d4 {[%clk 0:03:00]}  Nf6 {[%clk 0:03:00]} 2. Nf3 {[%clk 0:03:00]}  e6 {[%clk 0:03:00]} 3. b3 {[%clk 0:02:57]}  d5 {[%clk 0:03:00]} 4. Bb2 {[%clk 0:02:58]}  Be7 {[%clk 0:03:00]} 5. e3 {[%clk 0:02:57]}  O-O {[%clk 0:03:01]} 6. Bd3 {[%clk 0:02:56]}  b6 {[%clk 0:03:01]} 7. a4 {[%clk 0:02:51]}  a6 {[%clk 0:02:58]} 8. Nbd2 {[%clk 0:02:46]}  c5 {[%clk 0:02:58]} 9. Ne5 {[%clk 0:02:46]}  Bb7 {[%clk 0:02:57]} 10. f4 {[%clk 0:02:46]}  Nc6 {[%clk 0:02:53]} 11. Nxc6 {[%clk 0:02:40]}  Bxc6 {[%clk 0:02:53]} 12. Qf3 {[%clk 0:02:40]}  b5 {[%clk 0:02:48]} 13. O-O {[%clk 0:02:31]}  c4 {[%clk 0:02:40]} 14. bxc4 {[%clk 0:02:30]}  bxc4 {[%clk 0:02:37]} 15. Bxc4 {[%clk 0:02:29]}  dxc4 {[%clk 0:02:23]} 16. Qxc6 {[%clk 0:02:30]}  Rc8 {[%clk 0:02:24]} 17. Qxa6 {[%clk 0:02:31]}  c3 {[%clk 0:02:23]} 18. Bxc3 {[%clk 0:02:26]}  Rxc3 {[%clk 0:02:23]} 19. Ra2 {[%clk 0:02:26]}  Rxe3 {[%clk 0:02:23]} 20. Nf3 {[%clk 0:02:24]}  Nd5 {[%clk 0:02:18]} 21. Raa1 {[%clk 0:02:18]}  Nxf4 {[%clk 0:02:16]} 22. Kh1 {[%clk 0:02:09]}  Rc3 {[%clk 0:02:11]} 23. Rf2 {[%clk 0:02:01]}  Nd5 {[%clk 0:02:03]} 24. a5 {[%clk 0:01:59]}  Qc8 {[%clk 0:01:58]} 25. Qe2 {[%clk 0:01:50]}  Qc4 {[%clk 0:01:53]} 26. a6 {[%clk 0:01:46]}  Qxe2 {[%clk 0:01:50]} 27. Rxe2 {[%clk 0:01:47]}  Ra8 {[%clk 0:01:50]} 28. Ne5 {[%clk 0:01:43]}  Bf6 {[%clk 0:01:36]} 29. Nf3 {[%clk 0:01:14]}  g5 {[%clk 0:01:20]} 30. Ree1 {[%clk 0:01:06]}  Rxc2 {[%clk 0:01:08]} 31. Reb1 {[%clk 0:01:04]}  Rc7 {[%clk 0:01:07]} 32. h3 {[%clk 0:00:55]}  Rca7 {[%clk 0:01:07]} 0-1


[Site "https://www.chess.com"]

[Event "Titled Tuesday Blitz November 01 Late 2022"]
[White "Brown, Andrew"]
[Black "Valdes Romero, Leonardo"]
[WhiteFideId "3206513"]
[BlackFideId "6500331"]
[WhiteElo "2245"]
[BlackElo "2494"]
[Result "1/2-1/2"]
[Round "08"]
[TimeControl "180+1"]
[Date "2022.11.02"]
[WhiteClock "0:00:07"]
[BlackClock "0:00:11"]

1. d4 {[%clk 0:03:00]}  d6 {[%clk 0:03:00]} 2. c4 {[%clk 0:03:00]}  Nf6 {[%clk 0:03:01]} 3. Nc3 {[%clk 0:03:00]}  Nbd7 {[%clk 0:03:01]} 4. g3 {[%clk 0:03:00]}  e5 {[%clk 0:03:01]} 5. Bg2 {[%clk 0:03:00]}  Be7 {[%clk 0:03:01]} 6. Nf3 {[%clk 0:02:59]}  O-O {[%clk 0:03:02]} 7. O-O {[%clk 0:02:59]}  c6 {[%clk 0:03:02]} 8. e4 {[%clk 0:02:56]}  a6 {[%clk 0:03:01]} 9. a4 {[%clk 0:02:51]}  a5 {[%clk 0:03:01]} 10. d5 {[%clk 0:02:50]}  Nc5 {[%clk 0:03:00]} 11. Qc2 {[%clk 0:02:42]}  Qb6 {[%clk 0:02:53]} 12. Be3 {[%clk 0:02:38]}  Ng4 {[%clk 0:02:50]} 13. Bd2 {[%clk 0:02:29]}  Nb3 {[%clk 0:02:45]} 14. Rad1 {[%clk 0:02:27]}  Nxd2 {[%clk 0:02:31]} 15. Rxd2 {[%clk 0:02:19]}  f5 {[%clk 0:02:22]} 16. h3 {[%clk 0:02:09]}  fxe4 {[%clk 0:02:13]} 17. Nxe4 {[%clk 0:02:08]}  Nf6 {[%clk 0:02:13]} 18. Nxf6+ {[%clk 0:01:49]}  Rxf6 {[%clk 0:02:04]} 19. Ng5 {[%clk 0:01:35]}  Bf5 {[%clk 0:01:39]} 20. Be4 {[%clk 0:01:35]}  Raf8 {[%clk 0:01:17]} 21. Nxh7 {[%clk 0:01:12]}  Bxh7 {[%clk 0:01:13]} 22. Bxh7+ {[%clk 0:01:12]}  Kh8 {[%clk 0:01:13]} 23. Kg2 {[%clk 0:01:02]}  cxd5 {[%clk 0:00:50]} 24. cxd5 {[%clk 0:01:02]}  Qb4 {[%clk 0:00:33]} 25. Be4 {[%clk 0:00:45]}  Bd8 {[%clk 0:00:32]} 26. f3 {[%clk 0:00:32]}  Bb6 {[%clk 0:00:32]} 27. h4 {[%clk 0:00:25]}  Qc5 {[%clk 0:00:31]} 28. Qxc5 {[%clk 0:00:25]}  Bxc5 {[%clk 0:00:32]} 29. h5 {[%clk 0:00:22]}  b6 {[%clk 0:00:32]} 30. g4 {[%clk 0:00:21]}  Rf4 {[%clk 0:00:32]} 31. Rh1 {[%clk 0:00:20]}  Kg8 {[%clk 0:00:31]} 32. Rc2 {[%clk 0:00:20]}  Kf7 {[%clk 0:00:30]} 33. h6 {[%clk 0:00:17]}  gxh6 {[%clk 0:00:30]} 34. Rxh6 {[%clk 0:00:18]}  Ke7 {[%clk 0:00:30]} 35. Rc1 {[%clk 0:00:14]}  R8f7 {[%clk 0:00:24]} 36. Kg3 {[%clk 0:00:13]}  Kd7 {[%clk 0:00:22]} 37. Bf5+ {[%clk 0:00:12]}  R4xf5 {[%clk 0:00:20]} 38. gxf5 {[%clk 0:00:13]}  Be3 {[%clk 0:00:21]} 39. Rch1 {[%clk 0:00:08]}  Bxh6 {[%clk 0:00:21]} 40. Rxh6 {[%clk 0:00:09]}  Rxf5 {[%clk 0:00:21]} 41. Rh7+ {[%clk 0:00:10]}  Kc8 {[%clk 0:00:21]} 42. Rh6 {[%clk 0:00:07]}  Kc7 {[%clk 0:00:20]} 43. Rh7+ {[%clk 0:00:07]}  Kc8 {[%clk 0:00:20]} 44. Rh6 {[%clk 0:00:07]}  Kc7 {[%clk 0:00:16]} 45. Rh7+ {[%clk 0:00:07]}  Kc8 {[%clk 0:00:11]} 1/2-1/2


[Site "https://www.chess.com"]

[Event "Titled Tuesday Blitz November 01 Late 2022"]
[White "Deac, Bogdan-Daniel"]
[Black "Fernandez Guillen, Ernesto J."]
[WhiteFideId "1226380"]
[BlackFideId "3512428"]
[WhiteElo "2648"]
[BlackElo "2422"]
[Result "1-0"]
[Round "08"]
[TimeControl "180+1"]
[Date "2022.11.01"]
[WhiteClock "0:00:30"]
[BlackClock "0:00:01"]

1. d4 {[%clk 0:03:00]}  Nf6 {[%clk 0:02:38]} 2. Nf3 {[%clk 0:03:00]}  e6 {[%clk 0:02:34]} 3. c4 {[%clk 0:02:59]}  d5 {[%clk 0:02:33]} 4. g3 {[%clk 0:02:58]}  b6 {[%clk 0:02:10]} 5. Bg2 {[%clk 0:02:56]}  Bb7 {[%clk 0:02:08]} 6. cxd5 {[%clk 0:02:56]}  exd5 {[%clk 0:02:09]} 7. O-O {[%clk 0:02:56]}  Be7 {[%clk 0:02:10]} 8. Nc3 {[%clk 0:02:54]}  O-O {[%clk 0:02:10]} 9. b3 {[%clk 0:02:54]}  Re8 {[%clk 0:02:10]} 10. Bb2 {[%clk 0:02:54]}  Bf8 {[%clk 0:02:10]} 11. Rc1 {[%clk 0:02:53]}  Nbd7 {[%clk 0:02:08]} 12. e3 {[%clk 0:02:52]}  a6 {[%clk 0:02:04]} 13. Ne2 {[%clk 0:02:51]}  c5 {[%clk 0:01:54]} 14. Nf4 {[%clk 0:02:48]}  Rc8 {[%clk 0:01:51]} 15. dxc5 {[%clk 0:02:47]}  bxc5 {[%clk 0:01:52]} 16. Rc2 {[%clk 0:02:39]}  Nb6 {[%clk 0:01:38]} 17. Qa1 {[%clk 0:02:32]}  Ne4 {[%clk 0:01:34]} 18. Nd2 {[%clk 0:02:23]}  Nd6 {[%clk 0:01:08]} 19. Rfc1 {[%clk 0:01:50]}  c4 {[%clk 0:00:28]} 20. Bd4 {[%clk 0:01:49]}  cxb3 {[%clk 0:00:18]} 21. axb3 {[%clk 0:01:47]}  Rxc2 {[%clk 0:00:17]} 22. Rxc2 {[%clk 0:01:48]}  Nb5 {[%clk 0:00:17]} 23. Bxb6 {[%clk 0:01:46]}  Qxb6 {[%clk 0:00:18]} 24. Nxd5 {[%clk 0:01:47]}  Bxd5 {[%clk 0:00:16]} 25. Bxd5 {[%clk 0:01:46]}  Rd8 {[%clk 0:00:17]} 26. Nc4 {[%clk 0:01:44]}  Qg6 {[%clk 0:00:16]} 27. Rd2 {[%clk 0:01:42]}  Qg5 {[%clk 0:00:14]} 28. h4 {[%clk 0:01:07]}  Qe7 {[%clk 0:00:12]} 29. Ne5 {[%clk 0:01:04]}  Nd6 {[%clk 0:00:09]} 30. Nc6 {[%clk 0:01:02]}  Qc7 {[%clk 0:00:05]} 31. Nxd8 {[%clk 0:01:00]}  Qxd8 {[%clk 0:00:06]} 32. Qxa6 {[%clk 0:01:00]}  h6 {[%clk 0:00:04]} 33. Qa7 {[%clk 0:00:57]}  Qf6 {[%clk 0:00:04]} 34. Kg2 {[%clk 0:00:54]}  Qc3 {[%clk 0:00:03]} 35. Qd4 {[%clk 0:00:52]}  Qc7 {[%clk 0:00:03]} 36. b4 {[%clk 0:00:51]}  Qb8 {[%clk 0:00:02]} 37. Qf4 {[%clk 0:00:49]}  Qe8 {[%clk 0:00:02]} 38. Bf3 {[%clk 0:00:43]}  Qe6 {[%clk 0:00:01]} 39. Rd5 {[%clk 0:00:42]}  Qe7 {[%clk 0:00:02]} 40. b5 {[%clk 0:00:41]}  Qc7 {[%clk 0:00:02]} 41. Qd4 {[%clk 0:00:40]}  Qb8 {[%clk 0:00:02]} 42. b6 {[%clk 0:00:40]}  Qd8 {[%clk 0:00:01]} 43. b7 {[%clk 0:00:35]}  Qb8 {[%clk 0:00:01]} 44. h5 {[%clk 0:00:30]} 1-0


[Site "https://www.chess.com"]

[Event "Titled Tuesday Blitz November 01 Late 2022"]
[White "Diaz Rosas, Julio Cesar"]
[Black "Gallegos Diaz, Carlos Alberto"]
[WhiteFideId "5105099"]
[BlackFideId "3900886"]
[WhiteElo "2246"]
[BlackElo "2362"]
[Result "1-0"]
[Round "08"]
[TimeControl "180+1"]
[Date "2022.11.02"]
[WhiteClock "0:00:11"]
[BlackClock "0:00:20"]

1. d4 {[%clk 0:03:00]}  d6 {[%clk 0:02:59]} 2. c4 {[%clk 0:03:00]}  Nf6 {[%clk 0:02:59]} 3. Nc3 {[%clk 0:02:59]}  e5 {[%clk 0:02:59]} 4. b3 {[%clk 0:02:54]}  Be7 {[%clk 0:02:58]} 5. Bb2 {[%clk 0:02:54]}  O-O {[%clk 0:02:57]} 6. g3 {[%clk 0:02:49]}  c6 {[%clk 0:02:56]} 7. Bg2 {[%clk 0:02:49]}  Nbd7 {[%clk 0:02:56]} 8. dxe5 {[%clk 0:02:46]}  Nxe5 {[%clk 0:02:53]} 9. Nf3 {[%clk 0:02:43]}  Nxf3+ {[%clk 0:02:53]} 10. Bxf3 {[%clk 0:02:43]}  Bh3 {[%clk 0:02:51]} 11. Qd4 {[%clk 0:02:36]}  Qa5 {[%clk 0:02:32]} 12. a3 {[%clk 0:02:16]}  Rfd8 {[%clk 0:02:20]} 13. g4 {[%clk 0:02:00]}  Qb6 {[%clk 0:02:01]} 14. Qxb6 {[%clk 0:01:53]}  axb6 {[%clk 0:02:01]} 15. Rg1 {[%clk 0:01:53]}  h5 {[%clk 0:02:00]} 16. gxh5 {[%clk 0:01:49]}  Kh7 {[%clk 0:01:42]} 17. Ne4 {[%clk 0:01:45]}  Bf5 {[%clk 0:01:37]} 18. Ng5+ {[%clk 0:01:30]}  Kg8 {[%clk 0:01:35]} 19. h6 {[%clk 0:01:30]}  g6 {[%clk 0:01:35]} 20. h4 {[%clk 0:01:25]}  Nh7 {[%clk 0:01:30]} 21. e4 {[%clk 0:00:56]}  Bd7 {[%clk 0:01:18]} 22. O-O-O {[%clk 0:00:52]}  f6 {[%clk 0:00:49]} 23. Nh3 {[%clk 0:00:20]}  Bxh3 {[%clk 0:00:47]} 24. Rxg6+ {[%clk 0:00:20]}  Kh8 {[%clk 0:00:41]} 25. Rg7 {[%clk 0:00:20]}  Bf8 {[%clk 0:00:36]} 26. Rxb7 {[%clk 0:00:20]}  Bxh6+ {[%clk 0:00:34]} 27. Kc2 {[%clk 0:00:19]}  Rd7 {[%clk 0:00:32]} 28. Rxb6 {[%clk 0:00:18]}  Rc8 {[%clk 0:00:30]} 29. Rg1 {[%clk 0:00:17]}  Bg7 {[%clk 0:00:25]} 30. Bg4 {[%clk 0:00:15]}  Bxg4 {[%clk 0:00:24]} 31. Rxg4 {[%clk 0:00:16]}  Nf8 {[%clk 0:00:24]} 32. f3 {[%clk 0:00:16]}  Ne6 {[%clk 0:00:23]} 33. a4 {[%clk 0:00:16]}  Nc5 {[%clk 0:00:23]} 34. Rg6 {[%clk 0:00:16]}  Kh7 {[%clk 0:00:22]} 35. Rg2 {[%clk 0:00:15]}  Rf7 {[%clk 0:00:22]} 36. Bc3 {[%clk 0:00:14]}  f5 {[%clk 0:00:21]} 37. Bxg7 {[%clk 0:00:14]}  Rxg7 {[%clk 0:00:21]} 38. Rxg7+ {[%clk 0:00:14]}  Kxg7 {[%clk 0:00:22]} 39. exf5 {[%clk 0:00:14]}  Kf6 {[%clk 0:00:22]} 40. a5 {[%clk 0:00:14]}  Kxf5 {[%clk 0:00:22]} 41. b4 {[%clk 0:00:14]}  Ne6 {[%clk 0:00:21]} 42. a6 {[%clk 0:00:14]}  c5 {[%clk 0:00:20]} 43. b5 {[%clk 0:00:14]}  Nd4+ {[%clk 0:00:19]} 44. Kd3 {[%clk 0:00:12]}  Nxf3 {[%clk 0:00:18]} 45. Rxd6 {[%clk 0:00:12]}  Ne5+ {[%clk 0:00:19]} 46. Kc3 {[%clk 0:00:13]}  Ra8 {[%clk 0:00:18]} 47. Rd5 {[%clk 0:00:12]}  Ke6 {[%clk 0:00:19]} 48. Rxc5 {[%clk 0:00:12]}  Nd7 {[%clk 0:00:19]} 49. Rc6+ {[%clk 0:00:12]}  Ke7 {[%clk 0:00:19]} 50. Kb4 {[%clk 0:00:13]}  Kd8 {[%clk 0:00:19]} 51. h5 {[%clk 0:00:12]}  Nb8 {[%clk 0:00:20]} 52. Rg6 {[%clk 0:00:12]}  Kc7 {[%clk 0:00:20]} 53. h6 {[%clk 0:00:12]}  Nd7 {[%clk 0:00:20]} 54. c5 {[%clk 0:00:12]}  Ne5 {[%clk 0:00:19]} 55. Rg7+ {[%clk 0:00:12]}  Kb8 {[%clk 0:00:20]} 56. h7 {[%clk 0:00:11]}  Nd3+ {[%clk 0:00:20]} 57. Ka5 {[%clk 0:00:11]} 1-0


[Site "https://www.chess.com"]